Cogmind - Beta 14 @@@ ROGUE MODE // 2024.08.20 @ 03:37:36 Player: HourglassLad Result: Destroyed by S-27 Virus with Autogun Performance ------------- Evolutions (3) 1500 Regions Visited (5) 1000 Robots Destroyed (7) 35 Value Destroyed (118) 118 Prototype IDs (2) 40 Alien Tech Used (0) 0 Bonus (0) 0 TOTAL SCORE: 2693 Bonus ------- None Cogmind --------- Core Integrity 0/700 Matter 280/300 Energy 91/100 System Corruption 0% Temperature Cool (0) Movement Rolling (80) Location -7/Storage Parts ------- > --- POWER (1) -------- (None) > --- PROPULSION (6) --- Wheel > --- UTILITY (4) ------ (None) > --- WEAPON (2) ------- (None) > --- INVENTORY (5) ---- Ion Engine Light Ion Engine Cooling System Medium Laser Peak State ------------ > --- POWER ------------ Light Nuclear Core > --- PROPULSION ------- Flight Unit VTOL Module VTOL Module VTOL Module VTOL Module > --- UTILITY ---------- Hardened Light Armor Plating > --- WEAPON ----------- Medium Laser Rocket Launcher > --- INVENTORY -------- Ion Engine Light Ion Engine Cooling System Medium Laser [Rating: 17] Favorites ----------- Power Light Ion Engine Engine Light Ion Engine Power Core Light Nuclear Core Propulsion VTOL Module Treads Advanced Treads Wheel Wheel Flight Unit VTOL Module Utility Tractor Beam Device Tractor Beam Storage Small Storage Unit Protection Hardened Light Armor Plating Weapon Medium Laser Energy Gun Medium Laser Ballistic Gun Light Assault Rifle Launcher Rocket Launcher Build | -11 -10 -9 -8 -7 -7 ------- Run | Yrd Mat Mat Mat Fac Sto Slots Evolved 6 | . . 2 2 2 . Power . | . . . . . . Propulsion 4 | . . 2 1 1 . Utility 2 | . . . 1 1 . Weapon . | . . . . . . Parts Attached 27 | 7 8 3 3 3 3 Power 3 | 1 1 . 1 . . Engine 2 | 1 1 . . . . Core 1 | . . . 1 . . Reactor . | . . . . . . Propulsion 13 | 2 4 2 1 1 3 Treads 1 | . . . . 1 . Leg . | . . . . . . Wheel 4 | 2 . . . . 2 Hover . | . . . . . . Flight 8 | . 4 2 1 . 1 Utility 5 | 1 2 1 . 1 . Device 2 | . 1 . . 1 . Storage 1 | 1 . . . . . Processor . | . . . . . . Hackware . | . . . . . . Protection 2 | . 1 1 . . . Artifact . | . . . . . . Weapon 6 | 3 1 . 1 1 . Energy Gun 4 | 2 1 . . 1 . Energy Cannon . | . . . . . . Ballistic Gun 1 | 1 . . . . . Ballistic Cannon . | . . . . . . Launcher 1 | . . . 1 . . Special Weapon . | . . . . . . Impact Weapon . | . . . . . . Slashing Weapon . | . . . . . . Piercing Weapon . | . . . . . . Special Melee Weapon . | . . . . . . Unidentified Prototypes . | . . . . . . Parts Lost 13 | . . . 9 1 3 Power 1 | . . . 1 . . Propulsion 6 | . . . 4 . 2 Utility 3 | . . . 2 1 . Weapon 3 | . . . 2 . 1 Highest Loss Streak 9 | . . . 9 1 3 To Critical Strikes . | . . . . . . Average Slot Usage (%) 66 | . 93 100 86 7 11 Engine 7 | . 14 11 8 . . Treads 1 | . . . . 1 5 Wheel 2 | . 8 . . . 1 Flight 26 | . 19 44 43 2 . Device 7 | . 13 11 8 2 . Storage 1 | . 7 . . . . Protection 4 | . . 11 8 . . Energy Gun 15 | . 28 22 16 . 4 Peak Build Rating 17 | 6 10 13 17 6 6 Average Rating 9 | 5 7 12 14 2 4 On Entrance 5 | . 6 8 13 2 6 Naked Turns 52 | . . . . 32 20 Heaviest Build 16 | 12 13 13 16 3 3 Greatest Support 22 | 20 20 16 20 22 22 Greatest Overweight (x) 3 | . 3 . 1 . . Average Overweight (x) . | . . . . . . Largest Inventory Capacity 8 | 8 8 5 5 5 5 Average Capacity 5 | 7 6 5 5 5 5 Most Carried 5 | 3 5 4 4 5 5 Average Carried 3 | 1 3 2 3 4 4 Final Capacity 8 | 8 5 5 5 5 5 Final Carried 5 | 3 5 4 4 5 4 Class Distribution -------------------- 52% | Sprinter 47% | Mutant Dominant Class ---------------- Mutant | -10/Materials Sprinter | -9/Materials Sprinter | -8/Materials Mutant | -7/Factory Mutant | -7/Storage Resources | -11 -10 -9 -8 -7 -7 ----------- Run | Yrd Mat Mat Mat Fac Sto Matter Collected 406 | 171 136 73 . . 26 Remotely 209 | . 136 73 . . . Salvage Created 156 | . 136 . 20 . . Parts 11 | . 9 . 2 . . Haulers Intercepted . | . . . . . . Recyclers Shooed . | . . . . . . Parts Field Recycled . | . . . . . . Retrieved Matter . | . . . . . . Parts Self-Destructed . | . . . . . . Prevented . | . . . . . . Kills | -11 -10 -9 -8 -7 -7 ------- Run | Yrd Mat Mat Mat Fac Sto Combat Hostiles Destroyed 7 | . 5 . 2 . . Guns 5 | . 5 . . . . AOE 2 | . . . 2 . . Classes Destroyed 2 | . 2 . . . . Swarmer 5 | . 3 . 2 . . Grunt 2 | . 2 . . . . Best Kill Streak 3 | . 3 . 2 . . Combat Bots Only 3 | . 3 . 2 . . Max Kills in Single Turn 2 | . 1 . 2 . . Gunslinging . | . . . . . . Exploded 2 | . . . 2 . . Melee . | . . . . . . Uniques/NPCs Destroyed . | . . . . . . Combat | -11 -10 -9 -8 -7 -7 -------- Run | Yrd Mat Mat Mat Fac Sto Hostile Shots Fired 231 | . 22 23 67 16 103 Missed 91 | . 5 13 25 6 42 Damage Taken 1979 | . 157 117 722 176 807 Core 992 | . 29 36 224 128 575 Absorbed by Shields . | . . . . . . Core Remaining (%) 84 | 100 88 91 59 . . Volleys Fired 23 | 3 16 1 3 . . Largest 2 | 2 2 1 2 . . Hottest 100 | 100 100 50 83 . . Shots Fired 40 | 6 27 1 6 . . Gun 37 | 6 27 1 3 . . Cannon . | . . . . . . Launcher 3 | . . . 3 . . Special . | . . . . . . Kinetic . | . . . . . . Thermal 37 | 6 27 1 3 . . Explosive 3 | . . . 3 . . Electromagnetic . | . . . . . . Robot Hit Streak 5 | 2 5 . 4 . . Robot Miss Streak 2 | 1 2 1 2 . . Penetration Max . | . . . . . . Secondary Targets 1 | . 1 . . . . Max Gunslinging Chain 1 | . 1 . . . . Shots Hit Robots 25 | 3 18 . 4 . . Core Hits 10 | . 6 . 4 . . Critical Kills . | . . . . . . Critical Parts Destroyed . | . . . . . . Critical Strikes 2 | . 2 . . . . Burn 2 | . 2 . . . . Melee Attacks . | . . . . . . Impact . | . . . . . . Slashing . | . . . . . . Piercing . | . . . . . . Sneak Attacks . | . . . . . . Combat Hostiles . | . . . . . . Follow-up Attacks . | . . . . . . Damage Inflicted 513 | 38 226 . 243 6 . Guns 290 | 38 226 . 26 . . Cannons . | . . . . . . Explosions 200 | . . . 200 . . Melee . | . . . . . . Ramming 23 | . . . 17 6 . Kinetic . | . . . . . . Thermal 290 | 38 226 . 26 . . Explosive 200 | . . . 200 . . Electromagnetic . | . . . . . . Impact . | . . . . . . Slashing . | . . . . . . Piercing . | . . . . . . Highest Corruption . | . . . . . . Average Corruption . | . . . . . . Corruption Purged . | . . . . . . Corruption Blocked . | . . . . . . Overload Shots . | . . . . . . Overflow Damage 46 | . . . 46 . . Projectiles . | . . . . . . Explosions 46 | . . . 46 . . Melee . | . . . . . . Knockbacks . | . . . . . . Impact . | . . . . . . Kinetic . | . . . . . . Secondary . | . . . . . . Self-Inflicted Damage 15 | . . . 12 3 . Shots 1 | . . . 1 . . Rammed 3 | . . . 2 1 . Targets Rammed 3 | . . . 2 1 . Kicked . | . . . . . . Crushed . | . . . . . . Highest Temperature 281 | 117 281 64 149 . . Average Temperature 115 | 62 173 33 80 . . Received Heat Transfer 489 | . 48 42 81 108 210 Effects 1 | . 1 . . . . Interference 1 | . 1 . . . . Siege Activations . | . . . . . . Robots Corrupted . | . . . . . . Combat Hostiles . | . . . . . . Parts Fried . | . . . . . . Impact Corruptions . | . . . . . . Robots Melted . | . . . . . . Combat Hostiles . | . . . . . . Parts Melted 1 | . 1 . . . . Heat Transferred 999 | 111 814 . 74 . . Parts Sabotaged . | . . . . . . Parts Stolen . | . . . . . . Parts Stripped . | . . . . . . Power Chain Reactions . | . . . . . . Alert | -11 -10 -9 -8 -7 -7 ------- Run | Yrd Mat Mat Mat Fac Sto Peak Influence 257 | . 146 121 257 168 76 Initial 102 | . . 61 50 102 76 Average 66 | . 60 82 70 128 36 Maximum Alert Level 1 | . . . 1 . . Low Security (%) 97 | 100 100 100 94 100 100 Level 1 2 | . . . 5 . . Level 2 . | . . . . . . Level 3 . | . . . . . . Level 4 . | . . . . . . Level 5 . | . . . . . . High Security . | . . . . . . Max Security . | . . . . . . Squads Dispatched 6 | . . . 4 . 2 Investigation 3 | . . . 1 . 2 Extermination . | . . . . . . Reinforcement 3 | . . . 3 . . Assault . | . . . . . . Garrison . | . . . . . . Intercept . | . . . . . . Searches Triggered . | . . . . . . Construction Impeded . | . . . . . . Haulers Reinforced . | . . . . . . Active Scanning Responses . | . . . . . . Cargo Convoy Interrupts . | . . . . . . Stealth | -11 -10 -9 -8 -7 -7 --------- Run | Yrd Mat Mat Mat Fac Sto Distress Signals 3 | . 1 1 . . 1 Communications Jammed . | . . . . . . Distress Signals . | . . . . . . Times Spotted 53 | . 7 10 18 7 11 Peak Tracking Total 14 | . 4 13 14 3 14 Tactical Retreats 6 | . . . 2 2 2 Traps | -11 -10 -9 -8 -7 -7 ------- Run | Yrd Mat Mat Mat Fac Sto Traps Triggered . | . . . . . . Indirectly . | . . . . . . Trap Hack Attempts . | . . . . . . Triggered . | . . . . . . Disarmed . | . . . . . . Reprogrammed 3 | . . . . . 3 Reused 1 | . . . . . 1 Traps Extracted . | . . . . . . Installed . | . . . . . . Triggered 1 | . . . . . 1 Machines | -11 -10 -9 -8 -7 -7 ---------- Run | Yrd Mat Mat Mat Fac Sto Machines Disabled . | . . . . . . Max in Single Turn . | . . . . . . Machines Repaired . | . . . . . . Machines Dismantled . | . . . . . . Machines Sabotaged . | . . . . . . Overloaded Fab Kills . | . . . . . . Hacking | -11 -10 -9 -8 -7 -7 --------- Run | Yrd Mat Mat Mat Fac Sto Machines Accessed 7 | . 2 1 1 1 2 Terminals 6 | . 1 1 1 1 2 Fabricators . | . . . . . . Repair Stations . | . . . . . . Recycling Units 1 | . 1 . . . . Scanalyzers . | . . . . . . Garrison Access . | . . . . . . Total Hacks 18 | . 2 2 4 2 8 Successful 9 | . 2 . 2 1 4 Failed 9 | . . 2 2 1 4 Catastrophic 2 | . . 1 1 . . Database Lockouts . | . . . . . . Manual 3 | . . . 2 1 . Terminals 17 | . 1 2 4 2 8 Fabricators . | . . . . . . Repair Stations . | . . . . . . Recycling Units 1 | . 1 . . . . Scanalyzers . | . . . . . . Garrison Access . | . . . . . . Terminal Hacks 8 | . 1 . 2 1 4 Prototype ID Bank 1 | . . . 1 . . Branch Access Points 1 | . . . . 1 . Alert Level 1 | . . . . . 1 Unreport Threat 1 | . . . . . 1 Locate Traps 2 | . . . 1 . 1 Reprogram Traps 1 | . . . . . 1 Zone Layout 1 | . 1 . . . . Fabricator Hacks . | . . . . . . Repair Station Hacks . | . . . . . . Recycling Unit Hacks 1 | . 1 . . . . Report Inventory 1 | . 1 . . . . Scanalyzer . | . . . . . . Garrison Access Hacks . | . . . . . . Unauthorized Hacks . | . . . . . . Terminals . | . . . . . . Fabricators . | . . . . . . Repair Stations . | . . . . . . Recycling Units . | . . . . . . Scanalyzers . | . . . . . . Garrison Access . | . . . . . . Data Cores Recovered . | . . . . . . Used . | . . . . . . Hacking Detections 5 | . . 1 1 1 2 Full Trace Events 3 | . . . 1 . 2 Feedback Events . | . . . . . . Feedback Blocked . | . . . . . . Robot Schematics Acquired . | . . . . . . Robots Built . | . . . . . . Authchips . | . . . . . . Time . | . . . . . . Total Robot Build Rating . | . . . . . . Part Schematics Acquired . | . . . . . . Parts Built . | . . . . . . Authchips . | . . . . . . Time . | . . . . . . Total Part Build Rating . | . . . . . . Parts Repaired . | . . . . . . Time . | . . . . . . Parts Recycled . | . . . . . . Recycled Matter . | . . . . . . Retrieved Matter . | . . . . . . Retrieved Components . | . . . . . . Parts Scanalyzed . | . . . . . . Part Schematics Acquired . | . . . . . . Parts Damaged . | . . . . . . Bothacking | -11 -10 -9 -8 -7 -7 ------------ Run | Yrd Mat Mat Mat Fac Sto Used RIF Installer . | . . . . . . Robots Hacked . | . . . . . . Non-combat . | . . . . . . Combat . | . . . . . . Robot Hacks Applied . | . . . . . . Relay Couplers Released . | . . . . . . Fabnet Peak Effective % . | . . . . . . Robots Rewired . | . . . . . . Allies Hacked . | . . . . . . Hacks Repelled . | . . . . . . Allies | -11 -10 -9 -8 -7 -7 -------- Run | Yrd Mat Mat Mat Fac Sto Total Allies . | . . . . . . Largest Group . | . . . . . . Highest-Rated Group . | . . . . . . Highest-Rated Ally . | . . . . . . Total Orders . | . . . . . . Ally Attacks . | . . . . . . Total Damage . | . . . . . . Kills . | . . . . . . Allies Corrupted . | . . . . . . Allies Melted . | . . . . . . Intel | -11 -10 -9 -8 -7 -7 ------- Run | Yrd Mat Mat Mat Fac Sto Robot Analysis Total . | . . . . . . Derelict Logs Recovered . | . . . . . . Drone Launches . | . . . . . . Drone Recoveries . | . . . . . . Exploration | -11 -10 -9 -8 -7 -7 ------------- Run | Yrd Mat Mat Mat Fac Sto Turns Passed 831 | 65 156 33 356 107 114 Spaces Moved 777 | 54 162 97 157 204 103 Core 109 | 3 . . 1 67 38 Treads 75 | . . . . 15 60 Legs . | . . . . . . Wheels 115 | 51 59 . . . 5 Hover . | . . . . . . Flight 478 | . 103 97 156 122 . Fastest Speed 24 | 50 32 27 24 35 50 Average Speed 52 | 78 56 27 26 48 106 Slowest Speed 280 | 80 280 27 110 145 145 Overloaded Moves . | . . . . . . Propulsion Burnouts . | . . . . . . Robots Hopped 12 | . 2 2 8 . . Cave-ins Triggered . | . . . . . . Exploration Rate (%) 19 | 3 33 18 24 5 34 Regions Visited 5 Branch Regions 1 Pre-discovered Areas . | . . . . . . Known Exits Taken 1 | . . . . 1 . Unknown Exits Taken 4 | 1 1 1 1 . . Scrap Searched . | . . . . . . Spaces Dug . | . . . . . . Terrain Destroyed 30 | . . . 30 . . Melee . | . . . . . . Projectile . | . . . . . . AOE 30 | . . . 30 . . Terrain Rammed . | . . . . . . Walls Destroyed . | . . . . . . Machines Disabled . | . . . . . . Actions | -11 -10 -9 -8 -7 -7 --------- Run | Yrd Mat Mat Mat Fac Sto Total 1139 | 66 198 100 456 212 107 Wait 307 | . 3 . 300 4 . Move 750 | 53 157 92 142 203 103 Hop 11 | . 2 2 7 . . Pick Up 8 | 3 3 2 . . . Fast Attach 12 | 6 2 . . 3 1 Attach 6 | . . 3 1 . 2 Detach 4 | . 2 . . 1 1 Swap 9 | 1 6 . 2 . . Drop 7 | . 7 . . . . Fire 23 | 3 16 1 3 . . Melee . | . . . . . . Ram 2 | . . . 1 1 . Kick . | . . . . . . Crush . | . . . . . . Escape Stasis . | . . . . . . Rewire . | . . . . . . Trap . | . . . . . . Miscellaneous . | . . . . . . Route ------- -11/Scrapyard -10/Materials -9/Materials -8/Materials -7/Factory (discovered 4 exits: *Sto x2 / Low x2) -7/Storage History --------- Turn | Location | Event 21 | -11/Scrapyard | Discovered new exit (range 16) 66 | -11/Scrapyard | Entered Materials 207 | -10/Materials | Discovered new exit (range 12) 222 | -10/Materials | Entered another Materials area 222 | -9/Materials | Evolved 2 slots: Propulsion x2 251 | -9/Materials | Discovered new exit (range 11) 255 | -9/Materials | Entered another Materials area 255 | -8/Materials | Evolved 2 slots: Propulsion x1, Utility x1 447 | -8/Materials | Build established: Sprinter 594 | -8/Materials | Discovered new exit (range 4) 611 | -8/Materials | Entered Factory 611 | -7/Factory | Evolved 2 slots: Propulsion x1, Utility x1 641 | -7/Factory | Lost 9 parts (1p4n2u2w) 641 | -7/Factory | Identified exit to Storage 641 | -7/Factory | Identified exit to Lower Caves 718 | -7/Factory | Entered Storage 806 | -7/Storage | Core integrity fell below 50% 822 | -7/Storage | Core integrity fell below 20% 832 | -7/Storage | Destroyed by S-27 Virus with Autogun Last Messages --------------- 00772_ Penetrated by Slug. 00773_ K-01 Serf collects debris. 00775_ Penetrated by Slug. 00784_ Slug penetrates Wall. 00788_ Critical hit (Burn: +37). 00791_ Shock Rifle destroyed. 00797_ K-01 Serf cleans the Compression Vault. 00797_ Critical hit (Burn: +37). 00797_ Slug penetrates Door. 00801_ K-01 Serf collects debris. 00804_ K-01 Serf cleans the Compression Vault. 00805_ Adv. Treads destroyed. 00806_ Compression Vault explodes. 00806_ K-01 Serf destroyed. 00806_ VTOL Module destroyed. 00808_ Acquired 19 matter. 00808_ Extracted 7 matter. 00809_ K-01 Serf cleans the Transfer Shaft. 00809_ Acquired Wheel. 00825_ Connecting with Door Terminal... Map ----- +----------------------------------------------------+ | ?????????????????????????????????????????????? | | ?????????????????????????????????????????????? | | ?????????????????????????????????????????????? | | ?????????????????????????????????????????????? | | ??????????????????????? ?????????????????????? | | ??????????????????????# ?????????????????????? | | ????????????????????### ##???????????????????? | | ???????????????????? #???????????????????? | | ????????????????????? +???????????????????? | | ????????????????????? #?????############??? | | ?????????????????????# #?????# # # #### | | ?????????????????????# #?????# # | | ?????????????????????# #?????# # | | ?????????????????????# #?????# / | | ?????????????????????# #?????# ! """ # | | ?????????????????????# #?????# / """ # | | ???????????###########g ####### """ # | | ???????????# # | | ???????????+ # # | | ???????????# ##""T""#### | | ??????????????####### g##############"""""#??? | | ????????????????????# #????????????#######??? | | ????????????????##### s#?????????????????????? | | ????????????????# #?????????????????????? | | ????????????????# s #?????????????????????? | | ????????????????# @ ####??????????????????? | | ????????????????# "" #??????????????????? | | ????????????????# """#??????????????????? | | ???????????"#####s R"#??????????????????? | | ???????????" """#??????????????????? | | ???????????" ####??????????????????? | | ???????????"#T##### #?????????????????????? | | ????????????###???######?????????????????????? | | ?????????????????????????????????????????????? | | ?????????????????????????????????????????????? | | ?????????????????????????????????????????????? | | ?????????????????????????????????????????????? | | ?????????????????????????????????????????????? | | ?????????????????????????????????????????????? | | ?????????????????????????????????????????????? | | ?????????????????????????????????????????????? | | ?????????????????????????????????????????????? | | ?????????????????????????????????????????????? | | ?????????????????????????????????????????????? | | ?????????????????????????????????????????????? | | ?????????????????????????????????????????????? | | | | | | | | | +----------------------------------------------------+ Best States ------------- Heat Dissipation 34 Energy Generation 14 Energy Capacity 160 Matter Stores 300 Matter Capacity 300 Sight Range 16 Terrain Scan Density 10 Armor Coverage 150 Resistance: EX 25 Evasion (%) 65 Recoil Reduction 1 Item Schematics ----------------- None Robot Schematics ------------------ None Fabricated ------------ Nothing Alien Tech Used ----------------- None Achievements -------------- Can't Catch Me Challenges ------------ None Game ------ Seed WeaponsDisposableProjector Manual? 0 Play Time 00:13:13 Cumulative 27.7 hours Start 2024.08.20 @ 03:11:31 End 2024.08.20 @ 03:37:36 Sessions 1 Manual Loads 0 Difficulty Rogue Special Mode None Game No. 53 Rogue 53 Adventurer 0 Explorer 0 Win Type - Total 0 Types 0/0/0/0/0/0/0/0/0 Lore% 11 Gallery% 31 Achievement% 23 Wizard Run 0 Options --------- Layout 1 ASCII 0 Keyboard 1 Movement Numpad Keybinds 0 Fullscreen 1 Font 24/Smallcaps Map View 50x35 Zoom Use 25% Tactical HUD 1 Map Filters NONE Filters NONE Steam 1 RUN: e157f773-febb-4016-9f49-2ed21a30d151